bitfinex-derivatives/quotes_BTCF0:USTF0_20250119
["timestamp","ask_amount","ask_price","bid_price","bid_amount"]
[1737288812027,0.38885579,104800.0,104790.0,0.047793]
[1737288812227,0.24125579,104800.0,104790.0,0.41636671]
[1737288812419,0.24125579,104800.0,104790.0,0.48886671]
[1737288813035,0.28855579,104820.0,104790.0,0.48886671]
[1737288813235,0.28855579,104820.0,104810.0,0.769384]
[1737288813432,0.28855579,104820.0,104810.0,0.77715771]
[1737288813733,0.28855579,104820.0,104810.0,0.77715407]
[1737288814328,0.1473,104820.0,104810.0,1.00584234]
[1737288814630,0.18902679,104840.0,104810.0,1.00584234]
[1737288814936,0.33282679,104840.0,104830.0,0.408574]
[1737288815132,0.33282679,104840.0,104830.0,0.41634337]
[1737288815632,0.33282679,104840.0,104830.0,0.41634334]
[1737288815835,0.50152628,104840.0,104830.0,0.41634334]
[1737288816232,0.50152628,104840.0,104830.0,0.41634335]
[1737288816534,0.50152628,104840.0,104830.0,0.41156221]
[1737288816731,0.86232628,104840.0,104820.0,0.408578]
[1737288816935,0.047774,104830.0,104820.0,0.41634785]
[1737288817230,0.28505579,104840.0,104820.0,0.41634803]
[1737288817436,0.33282679,104840.0,104830.0,0.408574]
[1737288817937,0.34045679,104840.0,104830.0,0.408574]
[1737288818530,0.34045679,104840.0,104830.0,0.047774]
[1737288818836,0.34045679,104840.0,104830.0,0.408574]
[1737288819226,0.29268579,104840.0,104830.0,0.408574]
[1737288819535,0.29268579,104840.0,104830.0,0.41156228]
[1737288819934,0.34045579,104840.0,104830.0,0.41156228]
[1737288820236,0.34045579,104840.0,104830.0,0.3608]
[1737288820430,0.047774,104830.0,104820.0,0.42456504]
[1737288820632,0.047774,104830.0,104820.0,0.37977542]
[1737288822336,0.047774,104830.0,104820.0,0.42456604]
[1737288823232,0.560001,104840.0,104820.0,0.42456604]
[1737288823539,0.560001,104840.0,104820.0,0.43233622]
[1737288823729,0.567631,104840.0,104820.0,0.43233622]
[1737288823934,0.206831,104840.0,104820.0,0.38455722]
[1737288824138,0.206831,104840.0,104830.0,0.408574]
[1737288827048,0.244981,104840.0,104830.0,0.408574]
[1737288827434,0.244981,104840.0,104830.0,0.41156228]
[1737288829747,0.268821,104840.0,104830.0,0.41156219]
[1737288830544,0.22105,104840.0,104830.0,0.41156219]
[1737288830744,0.22105,104840.0,104830.0,0.4163432]
[1737288830946,0.07725,104840.0,104830.0,0.4163432]
[1737288831547,0.07725,104840.0,104830.0,1.9163432]
[1737288832241,0.07725,104840.0,104830.0,0.4163432]
[1737288835446,0.07725,104840.0,104830.0,0.408574]
[1737288835651,0.07725,104840.0,104830.0,0.41634234]
[1737288837554,0.07725,104840.0,104830.0,0.41634228]
[1737288838840,0.07725,104840.0,104830.0,0.58773569]
[1737288839453,0.07725,104840.0,104830.0,0.58773567]
[1737288839957,0.07725,104840.0,104830.0,0.57996741]
[1737288840149,0.1403,104860.0,104850.0,0.047765]
[1737288840454,0.1403,104860.0,104850.0,0.41155274]
[1737288840647,0.1403,104860.0,104850.0,1.91633287]
[1737288841058,0.188061,104860.0,104850.0,0.41633287]
[1737288841251,0.188061,104860.0,104850.0,0.41633253]
[1737288842054,0.188061,104860.0,104850.0,0.58772594]
[1737288842849,0.188061,104860.0,104850.0,0.17916099]
[1737288843050,0.188061,104860.0,104850.0,0.17139341]
[1737288843345,0.548861,104860.0,104850.0,0.05679341]
[1737288843550,0.047765,104850.0,104840.0,0.58948827]
[1737288843755,0.047765,104850.0,104840.0,0.23645704]
[1737288844147,0.047765,104850.0,104840.0,0.22868827]
[1737288844754,0.416185,104850.0,104840.0,0.22868827]
[1737288845054,0.04777,104840.0,104830.0,0.63726127]
[1737288845247,0.12117,104840.0,104830.0,0.6450307]
[1737288846052,0.12117,104840.0,104830.0,0.41634243]
[1737288846053,0.26242579,104840.0,104830.0,0.41634243]
[1737288847150,0.18902579,104840.0,104830.0,0.41703831]
[1737288847352,0.18902579,104840.0,104830.0,0.41634202]
[1737288847658,0.18902579,104840.0,104830.0,0.41703806]
[1737288848050,0.14125579,104840.0,104830.0,0.41703806]
[1737288849054,0.14125579,104840.0,104830.0,0.41634138]
[1737288849252,0.14125579,104840.0,104830.0,0.48624138]
[1737288849451,0.14125579,104840.0,104830.0,1.98624138]
[1737288849754,0.14887579,104850.0,104840.0,0.04777]
[1737288849959,0.14887579,104850.0,104840.0,0.41703443]
[1737288850757,0.00762,104850.0,104840.0,0.41703443]
[1737288851058,0.00762,104850.0,104840.0,0.41703357]
[1737288851258,0.00762,104850.0,104840.0,0.41703327]
[1737288851454,0.00762,104850.0,104840.0,0.41633755]
[1737288853456,0.00762,104850.0,104840.0,1.25847609]
[1737288853852,0.00762,104850.0,104840.0,1.2591724]
[1737288854058,0.00762,104850.0,104840.0,1.25847609]
[1737288854864,0.00762,104850.0,104840.0,1.03048413]
[1737288855561,0.00762,104850.0,104840.0,1.03927751]
[1737288856555,0.00762,104850.0,104840.0,1.11117763]
[1737288857451,0.00762,104850.0,104840.0,1.03927763]
[1737288857655,0.00762,104850.0,104840.0,1.03858133]
[1737288859566,0.01524,104850.0,104840.0,1.03858133]
[1737288860661,0.09014,104850.0,104840.0,1.03858133]
[1737288861367,0.09014,104850.0,104840.0,0.67778133]
[1737288861669,0.176045,104850.0,104840.0,0.67778133]
[1737288862074,0.176045,104850.0,104840.0,0.29328469]
[1737288862865,0.176045,104850.0,104840.0,0.29328581]
[1737288863359,0.176045,104850.0,104840.0,0.29328583]
[1737288865267,0.176045,104850.0,104840.0,0.0643322]
[1737288866274,0.176045,104850.0,104840.0,0.4251322]
[1737288866575,0.12828,104850.0,104840.0,0.4251322]
[1737288866871,0.12828,104850.0,104840.0,0.42513166]
[1737288867376,0.12828,104850.0,104840.0,0.42582829]
[1737288867567,0.05338,104850.0,104840.0,0.42582829]
[1737288867874,0.05338,104850.0,104840.0,1.925828]
[1737288869375,0.05338,104850.0,104840.0,1.999928]
[1737288869676,0.45695528,104870.0,104840.0,2.32441663]
[1737288869867,0.53175528,104870.0,104860.0,0.7216]
[1737288870071,0.53175528,104870.0,104860.0,0.77712926]
[1737288870778,0.36305579,104870.0,104860.0,0.77712926]
[1737288870977,0.36305579,104870.0,104860.0,0.77712769]
[1737288871579,0.28905579,104870.0,104860.0,0.77712759]
[1737288872173,0.21605579,104870.0,104860.0,0.77712759]
[1737288872378,0.0748,104870.0,104860.0,0.77712759]
[1737288872975,0.0748,104870.0,104860.0,0.77712757]
[1737288873778,0.18873955,104870.0,104860.0,0.77712757]
[1737288875381,0.08242,104870.0,104860.0,1.39516213]
[1737288875772,0.31218755,104890.0,104880.0,0.047752]
[1737288875974,0.38878755,104890.0,104880.0,0.77711857]
[1737288876181,0.34103955,104890.0,104880.0,0.77711857]
[1737288877468,0.34103955,104890.0,104880.0,0.41631857]
[1737288877673,0.38878655,104890.0,104880.0,0.41631857]
[1737288878078,0.274847,104890.0,104880.0,0.64494532]
[1737288879088,0.274847,104890.0,104880.0,0.65385712]
[1737288879485,0.274847,104890.0,104880.0,0.42522933]
[1737288879990,0.312977,104890.0,104880.0,0.42522933]
[1737288881290,0.320597,104890.0,104880.0,0.42522933]
[1737288881792,0.21393955,104900.0,104890.0,0.047747]
[1737288881985,0.15393055,104900.0,104890.0,0.48971253]
[1737288882986,0.15393055,104900.0,104890.0,0.4897103]
[1737288883595,0.039991,104900.0,104890.0,0.71833705]
[1737288884096,0.047611,104900.0,104890.0,0.71833705]
[1737288884285,0.055231,104900.0,104890.0,0.71833705]
[1737288885497,0.055231,104900.0,104890.0,0.64493705]
[1737288885794,0.463774,104900.0,104880.0,0.29477214]
[1737288885997,0.047747,104890.0,104880.0,0.28586034]
[1737288886582,0.408547,104890.0,104880.0,0.28586034]
[1737288886787,0.047747,104890.0,104880.0,0.28586034]
[1737288886988,0.487447,104890.0,104880.0,0.28586034]
[1737288887386,0.126647,104890.0,104880.0,0.28586034]
[1737288887591,0.126647,104890.0,104870.0,0.3608]
[1737288887592,0.24058655,104890.0,104870.0,0.3608]
[1737288887791,0.24058655,104890.0,104870.0,0.36856622]
[1737288887994,0.047752,104880.0,104870.0,0.36856622]
[1737288888305,0.047752,104880.0,104870.0,0.36378701]
[1737288888793,0.085882,104880.0,104870.0,0.36378701]
[1737288888993,0.158782,104880.0,104870.0,0.36378701]
[1737288889602,0.158782,104880.0,104870.0,0.3608]
[1737288889796,0.047756,104870.0,104860.0,0.3707645]
[1737288889995,0.047756,104870.0,104860.0,0.37853122]
[1737288890196,0.047756,104870.0,104860.0,0.42629222]
[1737288891298,0.047756,104870.0,104860.0,0.42151283]
[1737288891703,0.047756,104870.0,104860.0,1.92151283]
[1737288894397,0.16169555,104870.0,104860.0,1.92151283]
[1737288896005,0.16169555,104870.0,104860.0,1.92629256]
[1737288897609,0.16169555,104870.0,104860.0,1.92151283]
[1737288898107,0.16169555,104870.0,104860.0,1.92629256]
[1737288898411,0.047756,104870.0,104860.0,1.92629256]
[1737288899409,0.055376,104870.0,104860.0,1.92629256]
[1737288901111,0.055376,104870.0,104860.0,0.42629239]
[1737288902816,0.055376,104870.0,104860.0,0.00143004]
[1737288903015,0.454316,104870.0,104860.0,0.00143004]
[1737288903209,0.093516,104870.0,104860.0,0.00143004]
[1737288903712,0.454316,104870.0,104860.0,0.00143004]
[1737288903911,0.56825555,104870.0,104860.0,0.00143004]
[1737288904414,0.56825555,104870.0,104830.0,0.87956034]
[1737288904614,0.204962,104860.0,104850.0,0.047765]
[1737288905113,0.126862,104860.0,104850.0,0.05553331]
[1737288905608,0.126862,104860.0,104850.0,0.41633331]
[1737288906113,0.38279224,104860.0,104850.0,0.41633331]
[1737288906311,0.25593024,104860.0,104850.0,0.41633331]
[1737288906705,0.25593024,104860.0,104850.0,0.416185]
[1737288907006,0.25593024,104860.0,104850.0,0.42395274]
[1737288907204,0.11374677,104860.0,104850.0,0.42395274]
[1737288910303,0.11374677,104860.0,104850.0,1.92395274]
[1737288910504,0.18794347,104870.0,104860.0,0.047761]
[1737288910705,0.18794347,104870.0,104860.0,0.56922874]
[1737288910706,0.16299292,104870.0,104860.0,0.56922874]
[1737288910922,0.16869949,104880.0,104860.0,0.56922874]
[1737288911217,0.16869949,104880.0,104870.0,0.408556]
[1737288911421,0.16869949,104890.0,104880.0,0.047752]
[1737288911630,0.16869949,104890.0,104880.0,0.41631698]
[1737288912815,0.322955,104900.0,104880.0,0.41631693]
[1737288913017,0.047747,104890.0,104880.0,0.41631693]
[1737288913919,0.408547,104890.0,104880.0,0.00298651]
[1737288914218,0.047752,104880.0,104870.0,0.3608]
[1737288914418,0.047752,104880.0,104870.0,0.36856626]
[1737288914715,0.047752,104880.0,104870.0,0.41632226]
[1737288915419,0.055372,104880.0,104870.0,0.42485328]
[1737288916321,0.00762,104880.0,104870.0,0.42485328]
[1737288916519,0.055372,104880.0,104870.0,0.01629728]
[1737288916820,0.047756,104870.0,104860.0,0.28586034]
[1737288917020,0.294986,104870.0,104860.0,0.28586034]
[1737288917224,0.655786,104870.0,104860.0,0.28586034]
[1737288917611,0.655786,104870.0,104850.0,0.36842]
[1737288917815,0.047761,104860.0,104850.0,0.37618794]
[1737288918014,0.047761,104860.0,104850.0,0.42395294]
[1737288920624,0.047761,104860.0,104850.0,0.42395276]
[1737288924224,0.047761,104860.0,104850.0,0.37618776]
[1737288924529,0.047761,104860.0,104850.0,0.42395276]
[1737288925119,0.047761,104860.0,104850.0,0.06315287]
[1737288927729,0.055381,104860.0,104850.0,0.06315287]
[1737288931634,0.055381,104860.0,104850.0,0.01538787]
[1737288931829,0.055381,104860.0,104850.0,0.01538808]
[1737288931830,0.416181,104860.0,104850.0,0.01538808]
[1737288932029,0.416181,104860.0,104850.0,0.00762]
[1737288932437,0.055381,104860.0,104850.0,0.00762]
[1737288932636,0.416181,104860.0,104850.0,0.00762]
[1737288935547,0.423801,104860.0,104850.0,0.00762]
[1737288936345,0.047765,104850.0,104840.0,0.01012795]
[1737288936651,0.047765,104850.0,104840.0,0.01789692]
[1737288937350,0.047765,104850.0,104840.0,0.06566692]
[1737288938750,0.047765,104850.0,104840.0,0.05789795]
[1737288939853,0.047765,104850.0,104840.0,0.06566702]
[1737288940045,0.047765,104850.0,104840.0,0.05789795]
[1737288940353,0.047765,104850.0,104840.0,0.42646709]
[1737288940543,0.047765,104850.0,104840.0,0.42646686]
[1737288940743,0.071605,104850.0,104840.0,0.42646686]
[1737288942344,0.071605,104850.0,104840.0,0.37869686]
[1737288942645,0.57456832,104850.0,104830.0,0.0006]
[1737288942853,0.19647,104840.0,104830.0,0.00776899]
[1737288943047,0.27137,104840.0,104830.0,0.05554299]
[1737288943350,0.12317,104840.0,104830.0,0.05554299]
[1737288944147,0.26533332,104840.0,104830.0,0.05554299]
[1737288944647,0.26533332,104840.0,104830.0,0.41634299]
[1737288944852,0.26533332,104840.0,104830.0,0.05554299]
[1737288945249,0.26533332,104840.0,104830.0,0.00776899]
[1737288945449,0.047774,104830.0,104820.0,0.00853289]
[1737288945657,0.047774,104830.0,104810.0,0.28586034]
[1737288945658,0.047779,104820.0,104810.0,0.28586034]
[1737288945843,0.047779,104820.0,104810.0,0.29363083]
[1737288946047,0.408579,104820.0,104810.0,0.29363083]
[1737288946246,0.408579,104820.0,104810.0,0.28586034]
[1737288946847,0.047788,104800.0,104790.0,0.41745538]
[1737288947058,0.047788,104800.0,104790.0,0.4252273]
[1737288947252,0.408588,104800.0,104790.0,0.0166353]
[1737288947546,0.408588,104800.0,104790.0,0.01185258]
[1737288947742,0.408588,104800.0,104790.0,0.00886338]
[1737288947951,0.416218,104800.0,104790.0,0.047793]
[1737288948148,0.08003,104800.0,104790.0,0.408593]
[1737288948457,0.22209102,104800.0,104790.0,0.4115825]
[1737288948642,0.14969102,104800.0,104790.0,0.4115825]
[1737288948956,0.19747902,104800.0,104790.0,0.41158232]
[1737288949553,0.055418,104800.0,104790.0,0.41158232]
[1737288949956,0.055418,104800.0,104790.0,0.41158236]
[1737288950158,0.055418,104800.0,104790.0,0.41921236]
[1737288950550,0.00763,104800.0,104790.0,0.41921236]
[1737288950949,0.00763,104800.0,104790.0,0.42399508]
[1737288951253,0.047782,104820.0,104810.0,0.047784]
[1737288951451,0.047782,104820.0,104810.0,0.41157336]
[1737288951855,0.047782,104820.0,104810.0,0.41635543]
[1737288952058,0.047782,104820.0,104810.0,1.98745543]
[1737288952260,0.21806102,104830.0,104810.0,2.30047143]
[1737288952552,0.047779,104820.0,104810.0,1.98745443]
[1737288953349,0.047779,104820.0,104810.0,0.48745443]
[1737288954354,0.047779,104820.0,104810.0,0.48745378]
[1737288956254,0.047779,104820.0,104810.0,0.49626938]
[1737288956457,0.055409,104820.0,104810.0,0.49626938]
[1737288956959,0.055409,104820.0,104810.0,0.49626945]
[1737288958065,0.00763,104820.0,104810.0,0.49626945]
[1737288959964,0.055409,104820.0,104810.0,0.49626945]
[1737288960465,0.055409,104820.0,104810.0,0.49626886]
[1737288960760,0.00763,104820.0,104810.0,0.49148716]
[1737288961854,0.04579,104820.0,104810.0,0.49148716]
[1737288962658,0.04579,104820.0,104810.0,0.85228716]
[1737288964353,0.093569,104820.0,104810.0,0.78118716]
[1737288964568,0.454369,104820.0,104800.0,0.00064]
[1737288964759,0.483384,104810.0,104800.0,0.51483708]
[1737288964960,0.555384,104810.0,104800.0,0.16413708]
[1737288965158,0.047788,104800.0,104790.0,0.34128507]
[1737288965369,0.408588,104800.0,104790.0,0.34128507]
[1737288965560,0.047788,104800.0,104790.0,0.34128507]
[1737288966164,0.047788,104800.0,104780.0,0.41878936]
[1737288966365,0.047793,104790.0,104780.0,0.42177899]
[1737288966668,0.047793,104790.0,104780.0,0.41878936]
[1737288966867,0.047793,104790.0,104780.0,0.42177906]
[1737288967262,0.047793,104790.0,104780.0,0.37398206]
[1737288967471,0.408593,104790.0,104770.0,0.24226889]
[1737288967666,0.408597,104780.0,104770.0,0.17914232]
[1737288967868,0.408597,104780.0,104770.0,0.17435867]
[1737288968067,0.481097,104780.0,104770.0,0.17136889]
[1737288968871,0.481097,104780.0,104770.0,0.18031472]
[1737288969065,0.481097,104780.0,104770.0,0.00894583]
[1737288969265,0.047802,104770.0,104760.0,0.1463]
[1737288969461,0.047802,104770.0,104760.0,0.15831796]
[1737288969663,0.047793,104790.0,104770.0,0.0478]
[1737288969867,0.047793,104790.0,104770.0,0.48329017]
[1737288970975,0.047793,104790.0,104780.0,0.3608]
[1737288971170,0.14206102,104800.0,104780.0,0.36379017]
[1737288971469,0.14206102,104800.0,104790.0,0.559693]
[1737288971470,0.09426803,104800.0,104790.0,0.559693]
[1737288971667,0.11339503,104800.0,104790.0,2.06268188]
[1737288972872,0.12102503,104800.0,104790.0,2.06268188]
[1737288973063,0.04579,104820.0,104790.0,2.23405077]
[1737288973263,0.11339503,104830.0,104820.0,0.047779]
[1737288973474,0.11339503,104830.0,104820.0,0.41156788]
[1737288973673,0.11339503,104830.0,104820.0,0.486479]
[1737288973974,0.11339503,104830.0,104820.0,0.48946725]
[1737288974471,0.00763,104830.0,104820.0,0.48946725]
[1737288974972,0.055404,104830.0,104820.0,0.00298825]
[1737288975176,0.565104,104830.0,104810.0,0.17136889]
[1737288975469,0.047779,104820.0,104810.0,0.17136889]
[1737288975670,0.055409,104820.0,104810.0,0.17136889]
[1737288976068,0.416209,104820.0,104810.0,0.17136889]
[1737288976465,0.047788,104800.0,104790.0,0.34128507]
[1737288976667,0.047788,104800.0,104790.0,0.75286735]
[1737288976866,0.05541,104820.0,104800.0,0.047786]
[1737288977073,0.16880503,104820.0,104800.0,0.41157528]
[1737288977476,0.047784,104810.0,104800.0,0.41157528]
[1737288977968,0.12102503,104820.0,104800.0,0.41157528]
[1737288978167,0.16880503,104820.0,104810.0,0.3608]
[1737288978972,0.12102503,104820.0,104810.0,0.3608]
[1737288979270,0.047784,104810.0,104800.0,0.3608]
[1737288979464,0.047784,104810.0,104800.0,0.00298899]
[1737288979866,0.047788,104800.0,104790.0,0.047792]
[1737288980069,0.047788,104800.0,104790.0,0.05078127]
[1737288980263,0.047788,104800.0,104790.0,0.00298927]
[1737288981172,0.234448,104800.0,104790.0,0.00298927]
[1737288981365,0.047797,104780.0,104770.0,1.908601]
[1737288981573,0.047797,104780.0,104770.0,1.9115905]
[1737288982479,0.047797,104780.0,104770.0,0.4115905]
[1737288982877,0.047797,104780.0,104760.0,0.5101]
[1737288983068,0.047797,104780.0,104680.0,1.11448506]
[1737288983263,0.3,104780.0,104640.0,0.03409161]
[1737288983472,0.3,104780.0,104570.0,0.64648572]
[1737288983473,0.3608,104610.0,104570.0,0.64648572]
[1737288983770,0.3608,104610.0,104530.0,0.00957407]
[1737288983771,0.047899,104560.0,104530.0,0.00957407]
[1737288983975,0.3608,104550.0,104530.0,0.00957407]
[1737288984275,0.3608,104550.0,104540.0,2.98443557]
[1737288984976,0.33925618,104550.0,104540.0,1.82753077]
[1737288985275,0.38715818,104550.0,104540.0,1.5]
[1737288985871,0.01,104540.0,104520.0,0.047914]
[1737288986072,0.3608,104540.0,104530.0,0.28564]
[1737288986264,0.3608,104540.0,104530.0,1.78564]
[1737288986462,0.418704,104550.0,104530.0,1.78564]
[1737288986668,0.3608,104540.0,104530.0,1.78564]
[1737288987282,0.3708,104550.0,104530.0,1.833551]
[1737288987468,0.3708,104550.0,104540.0,0.28564]
[1737288987670,0.047899,104560.0,104540.0,0.6464]
[1737288988073,0.408699,104560.0,104540.0,0.6464]
[1737288988273,0.047899,104560.0,104540.0,0.64636]
[1737288988478,4.21771576,104550.0,104540.0,0.64636]
[1737288988778,2.21771576,104550.0,104540.0,0.2535527]
[1737288988974,1.6730389,104550.0,104530.0,1.30627787]
[1737288989179,0.3608,104540.0,104510.0,0.3608]
[1737288989474,0.047913,104530.0,104510.0,0.3608]
[1737288989975,0.047913,104530.0,104520.0,1.5]
[1737288990178,0.047913,104530.0,104510.0,0.3608]
[1737288990381,1.52866875,104520.0,104510.0,0.3608]
[1737288990766,1.52866875,104520.0,104510.0,0.32878715]
[1737288991178,0.62350342,104520.0,104510.0,1.82874715]
[1737288991480,0.62350342,104520.0,104510.0,1.87666815]
[1737288991779,0.62350342,104520.0,104510.0,1.87662815]
[1737288992075,0.6178214,104550.0,104520.0,0.047913]
[1737288992273,0.5699174,104550.0,104530.0,0.40871]
[1737288992469,0.9307174,104550.0,104530.0,0.2648667]
[1737288992680,2.77486184,104540.0,104530.0,0.2648667]
[1737288992885,2.77486184,104540.0,104530.0,0.23285763]
[1737288993484,1.72659267,104540.0,104510.0,1.908719]
[1737288993681,1.72659267,104540.0,104510.0,1.46132535]
[1737288993879,0.00099785,104530.0,104510.0,1.46132535]
[1737288994085,2.27150371,104530.0,104520.0,0.3608]
[1737288994283,2.27150371,104530.0,104510.0,0.408721]
[1737288994483,2.27150371,104530.0,104510.0,0.408681]
[1737288994687,2.27150371,104530.0,104520.0,1.5]
[1737288994978,0.86237642,104530.0,104520.0,1.5]
[1737288995177,1.22317642,104530.0,104520.0,1.5]
[1737288995783,1.22317642,104530.0,104510.0,0.408681]
[1737288996284,1.22317642,104530.0,104510.0,1.547921]
[1737288996482,2.77493408,104520.0,104510.0,1.547921]
[1737288996784,2.77493408,104520.0,104510.0,0.047921]
[1737288997283,1.36588381,104520.0,104500.0,0.4608]
[1737288997478,1.36588381,104520.0,104500.0,0.147925]
[1737288997680,1.72668381,104520.0,104500.0,0.147925]
[1737288997881,1.72668381,104520.0,104500.0,0.508685]
[1737288998283,1.7233113,104510.0,104500.0,0.29296471]
[1737288998480,1.7233113,104510.0,104490.0,0.3608]
[1737288998684,1.7233113,104510.0,104490.0,0.40873]
[1737288998885,1.7233113,104510.0,104500.0,0.047925]
[1737288999078,1.7233113,104510.0,104500.0,0.047885]
[1737288999275,1.7233841,104510.0,104500.0,1.547885]
[1737288999474,8.357e-05,104510.0,104500.0,1.547885]
[1737288999673,0.62352115,104520.0,104510.0,0.047921]
[1737288999881,0.62359412,104520.0,104510.0,0.047921]
[1737289000084,0.98442196,104520.0,104510.0,0.047921]
[1737289000277,0.408712,104530.0,104510.0,0.047881]
[1737289000787,0.86540967,104520.0,104510.0,0.047841]
[1737289001296,2.19652381,104520.0,104510.0,0.047841]
[1737289001784,1.401451,104520.0,104510.0,0.047841]
[1737289001985,0.71650864,104520.0,104510.0,0.047841]
[1737289002176,0.71650864,104520.0,104490.0,0.3608]
[1737289002375,0.71650864,104520.0,104500.0,0.047922]
[1737289002578,8.993e-05,104510.0,104500.0,0.047922]
[1737289002779,0.71650864,104520.0,104500.0,0.047922]
[1737289002976,0.71650864,104520.0,104490.0,0.3608]
[1737289003188,0.71650864,104520.0,104490.0,0.2073101]
[1737289003487,0.73180864,104520.0,104500.0,0.3608]
[1737289003789,1.39739134,104510.0,104500.0,0.047885]
[1737289003983,1.83072426,104510.0,104500.0,0.047885]
[1737289004177,1.83072426,104510.0,104480.0,0.88948059]
[1737289004378,1.83061767,104510.0,104480.0,0.88948059]
[1737289004587,0.3608,104510.0,104500.0,0.047925]
[1737289005693,0.66311436,104510.0,104500.0,0.047925]
[1737289005883,0.66319436,104510.0,104500.0,0.047925]
[1737289006090,0.66322095,104510.0,104500.0,0.047925]
[1737289006388,0.68703436,104510.0,104500.0,0.047925]
[1737289006783,0.73495536,104510.0,104500.0,0.047925]
[1737289006985,0.73495536,104510.0,104480.0,0.00898659]
[1737289006986,0.73495536,104510.0,104490.0,0.047929]
[1737289007186,0.3608,104500.0,104490.0,0.047929]
[1737289008095,0.3608,104500.0,104470.0,1.8608755]
[1737289008280,0.408726,104500.0,104490.0,0.04793]
[1737289008886,0.408726,104500.0,104490.0,0.04789]
[1737289009501,0.68584834,104500.0,104490.0,0.04789]
[1737289010295,0.68584834,104500.0,104470.0,0.00903856]
[1737289010483,0.3608,104480.0,104460.0,0.408743]
[1737289010684,0.3608,104480.0,104470.0,0.047939]
[1737289011082,0.7216,104480.0,104470.0,0.047939]
[1737289011486,0.3608,104490.0,104480.0,0.047933]
[1737289012686,0.3608,104490.0,104480.0,0.03752499]
[1737289013082,0.40873,104490.0,104480.0,0.03752499]
[1737289013694,0.40883659,104490.0,104480.0,0.03752499]
[1737289014088,0.40883485,104490.0,104480.0,0.03752499]
[1737289014393,0.40873,104490.0,104480.0,0.03752499]
[1737289014595,0.40873,104490.0,104480.0,0.04517499]
[1737289015089,0.3608,104490.0,104480.0,0.04517499]
[1737289015291,0.63792234,104500.0,104480.0,0.04517499]
[1737289015594,0.63792234,104500.0,104490.0,0.04793]
[1737289015796,0.39907,104500.0,104490.0,0.04793]
[1737289018197,0.03827,104500.0,104490.0,0.04793]
[1737289018402,0.02392,104510.0,104490.0,0.2552309]
[1737289018592,0.02392,104510.0,104500.0,0.047925]
[1737289019695,0.02392,104510.0,104490.0,1.56189697]
[1737289019897,0.39237,104510.0,104500.0,0.047925]
[1737289020392,0.39237,104510.0,104500.0,0.047885]
[1737289020793,0.39237,104510.0,104460.0,0.55674]
[1737289021094,0.3608,104490.0,104480.0,0.047931]
[1737289022097,0.67293786,104490.0,104480.0,0.047931]
[1737289023798,0.67293786,104490.0,104480.0,0.04693315]
[1737289024099,0.67304367,104490.0,104480.0,0.04693315]
[1737289024300,0.67302307,104490.0,104480.0,0.04693315]
[1737289024492,0.67303034,104490.0,104480.0,0.04693315]
[1737289024687,0.67293786,104490.0,104480.0,0.04693315]
[1737289025492,0.96454246,104490.0,104480.0,0.04689315]
[1737289025701,0.96454246,104490.0,104460.0,0.04794]
[1737289025702,1.32534246,104490.0,104460.0,0.04794]
[1737289025899,0.3608,104470.0,104460.0,0.04794]
[1737289026099,0.3608,104470.0,104460.0,1.5568345]
[1737289027298,0.58803314,104470.0,104460.0,1.5568345]
[1737289027503,0.62631314,104470.0,104460.0,1.5568345]
[1737289028093,0.82513507,104470.0,104460.0,1.5568345]
[1737289028503,0.46433507,104470.0,104460.0,1.5568345]
[1737289029103,0.46433507,104470.0,104460.0,1.9176345]
[1737289029104,7e-08,104470.0,104460.0,1.9176345]
[1737289029291,4.2e-07,104470.0,104460.0,1.9655745]
[1737289029499,0.04998894,104480.0,104470.0,0.047939]
[1737289030405,0.21708848,104480.0,104470.0,0.408739]
[1737289030907,0.21708848,104480.0,104470.0,0.047939]
[1737289031105,0.17046868,104480.0,104470.0,0.047939]
[1737289031597,0.17046868,104480.0,104470.0,1.547939]
[1737289032207,0.14208097,104480.0,104470.0,1.547939]
[1737289033909,6e-08,104480.0,104470.0,1.547939]
[1737289035308,0.11368163,104480.0,104470.0,1.547939]
[1737289037011,0.08453404,104480.0,104470.0,0.047939]
[1737289037206,0.51270434,104500.0,104490.0,0.04793]
[1737289037406,0.50382011,104500.0,104490.0,0.04793]
[1737289037601,0.50382011,104500.0,104490.0,1.54793]
[1737289037804,0.47867832,104500.0,104490.0,1.54793]
[1737289038110,0.35930632,104500.0,104490.0,1.54793]
[1737289038313,0.17821127,104500.0,104490.0,1.54793]
[1737289038503,0.3608,104510.0,104490.0,1.54793]
[1737289038703,0.3548,104510.0,104500.0,0.047925]
[1737289039414,0.36877818,104520.0,104500.0,0.408725]
[1737289039606,0.23421604,104520.0,104510.0,0.401071]
[1737289039810,0.24186604,104520.0,104510.0,0.401071]
[1737289040317,0.24186604,104520.0,104510.0,0.40406715]
[1737289040900,0.24951604,104520.0,104510.0,0.40406715]
[1737289041306,0.5102,104540.0,104530.0,0.047912]
[1737289041508,0.5102,104540.0,104530.0,0.05090815]
[1737289041714,0.54846,104540.0,104530.0,0.05090815]
[1737289041915,0.54846,104540.0,104530.0,0.05090828]
[1737289042814,0.55611,104540.0,104530.0,0.05090828]
[1737289043513,0.19531,104540.0,104530.0,0.05090828]
[1737289043705,0.12241,104540.0,104530.0,0.05090828]
[1737289043906,0.12241,104540.0,104530.0,0.05090812]
[1737289044106,0.04182716,104540.0,104530.0,0.41170812]
[1737289045817,0.04182716,104540.0,104530.0,0.64119295]
[1737289046216,0.00062642,104540.0,104530.0,0.64119295]
[1737289046413,0.4383,104560.0,104550.0,0.047902]
[1737289046616,0.4383,104560.0,104550.0,0.05089812]
[1737289047511,0.44595,104560.0,104550.0,0.05089812]
[1737289047912,0.44595,104560.0,104550.0,0.05089771]
[1737289049414,0.493848,104560.0,104530.0,0.28651819]
[1737289049615,0.3608,104540.0,104530.0,0.28651819]
[1737289049820,0.44595,104560.0,104530.0,0.28651819]
[1737289050008,0.44595,104560.0,104550.0,0.047902]
[1737289053635,0.44595,104560.0,104550.0,0.05692024]
[1737289054930,0.36845,104560.0,104550.0,0.05692024]
[1737289056135,0.00765,104560.0,104550.0,0.41772024]
[1737289056435,0.0153,104560.0,104550.0,0.41772024]
[1737289056733,0.0725,104570.0,104560.0,0.047898]
[1737289057936,1e-08,104570.0,104560.0,0.047898]
[1737289058138,0.00765001,104570.0,104560.0,0.047898]
[1737289058540,0.00765,104570.0,104560.0,1.547898]